fUST/lending_fUST_20250124
["ID","MTS","AMOUNT","RATE_DAILY","PERIOD"]
[350147585,1737652251179,-1277.83,0.00020684,3]
[350147586,1737652251191,-500.0,0.00020684,3]
[350147587,1737652251204,-523.12,0.00020684,3]
[350147588,1737652251214,-347.26,0.00020684,3]
[350147589,1737652251223,-500.0,0.00020684,3]
[350147590,1737652251234,-538.38,0.00020684,3]
[350147591,1737652251243,-4349.76,0.00020684,3]
[350147592,1737652251253,-500.0,0.00020684,3]
[350147593,1737652251263,-629.49,0.00020684,3]
[350147594,1737652251272,-521.66613896,0.00020728,2]
[350147595,1737652251282,-500.0,0.0002074,3]
[350147596,1737652251292,-500.0,0.00020741,2]
[350147597,1737652251301,-500.0,0.00020741,3]
[350147598,1737652251310,-500.0,0.00020741,3]
[350147599,1737652251319,-500.0,0.00020741,3]
[350147600,1737652251330,-1771.12,0.00020741,3]
[350147601,1737652251339,-500.0,0.00020821,2]
[350147602,1737652251348,-609.37,0.00020821,3]
[350147603,1737652251357,-1052.94,0.00020821,3]
[350147604,1737652251367,-500.0,0.00020821,3]
[350147605,1737652251376,-653.13,0.00020821,3]
[350147606,1737652251385,-500.0,0.00020821,3]
[350147607,1737652251394,-500.0,0.00020821,3]
[350147608,1737652251404,-1663.58,0.00020821,3]
[350147609,1737652251413,-1277.83,0.00020821,3]
[350147610,1737652251423,-500.0,0.00020821,3]
[350147611,1737652251432,-523.12,0.00020821,3]
[350147612,1737652251448,-500.0,0.00020821,3]
[350147613,1737652251458,-538.38,0.00020821,3]
[350147614,1737652251467,-4349.76,0.00020821,3]
[350147615,1737652251477,-500.0,0.00020821,3]
[350147616,1737652251487,-629.49,0.00020821,3]
[350147617,1737652251496,-500.0,0.00020846,2]
[350147618,1737652251506,-521.66613896,0.00020866,2]
[350147619,1737652251515,-500.0,0.00020878,2]
[350147620,1737652251525,-500.0,0.00020878,3]
[350147621,1737652251534,-500.0,0.00020878,3]
[350147622,1737652251544,-500.0,0.00020878,3]
[350147623,1737652251554,-1771.12,0.00020878,3]
[350147624,1737652251564,-500.0,0.00020958,2]
[350147625,1737652251573,-609.37,0.00020958,3]
[350147626,1737652251583,-1052.94,0.00020958,3]
[350147627,1737652251593,-500.0,0.00020958,3]
[350147628,1737652251603,-653.13,0.00020958,3]
[350147629,1737652251612,-500.0,0.00020958,3]
[350147630,1737652251622,-621.56566799,0.00020958,3]
[350147631,1737652251631,-1663.58,0.00020958,3]
[350147632,1737652251641,-1277.83,0.00020958,3]
[350147633,1737652251651,-500.0,0.00020958,3]
[350147634,1737652251660,-523.12,0.00020958,3]
[350147635,1737652251669,-500.0,0.00020958,3]
[350147636,1737652251679,-538.38,0.00020958,3]
[350147637,1737652251694,-4349.76,0.00020958,3]
[350147638,1737652251703,-500.0,0.00020958,3]
[350147639,1737652251713,-629.49,0.00020958,3]
[350147640,1737652251794,-150.0,0.00021,2]
[350147641,1737652251804,-521.66613896,0.00021003,2]
[350147642,1737652251814,-500.0,0.00021014,3]
[350147643,1737652251823,-500.0,0.00021015,2]
[350147644,1737652251832,-500.0,0.00021015,3]
[350147645,1737652251841,-500.0,0.00021015,3]
[350147646,1737652251851,-500.0,0.00021015,3]
[350147647,1737652251860,-1771.12,0.00021015,3]
[350147648,1737652251869,-500.0,0.00021095,2]
[350147649,1737652251879,-609.37,0.00021095,3]
[350147650,1737652251888,-1052.94,0.00021095,3]
[350147651,1737652251897,-469.29,0.00021095,3]
[350147652,1737652251907,-653.13,0.00021095,3]
[350147653,1737652251916,-521.7,0.00021095,3]
[350147654,1737652251925,-1663.58,0.00021095,3]
[350147655,1737652251940,-1277.83,0.00021095,3]
[350147656,1737652251951,-500.0,0.00021095,3]
[350147657,1737652251960,-523.12,0.00021095,3]
[350147658,1737652251969,-500.0,0.00021095,3]
[350147659,1737652251979,-538.38,0.00021095,3]
[350147660,1737652251988,-4349.76,0.00021095,3]
[350147661,1737652251998,-184.17,0.00021095,3]
[350147662,1737652252007,-629.49,0.00021095,3]
[350147663,1737652252017,-521.66613896,0.00021141,2]
[350147664,1737652252025,-862.91623972,0.00021143,2]
[350147665,1737652252034,-500.0,0.00021152,2]
[350147666,1737652252043,-500.0,0.00021152,3]
[350147667,1737652252052,-500.0,0.00021152,3]
[350147668,1737652252062,-500.0,0.00021152,3]
[350147669,1737652252072,-1771.12,0.00021152,3]
[350147670,1737652252081,-300.0,0.000212,9]
[350147671,1737652252090,-500.0,0.00021232,2]
[350147672,1737652252100,-609.37,0.00021232,3]
[350147673,1737652252109,-1052.94,0.00021232,3]
[350147674,1737652252118,-653.13,0.00021232,3]
[350147675,1737652252128,-1663.58,0.00021232,3]
[350147676,1737652252139,-1277.83,0.00021232,3]
[350147678,1737652252149,-500.0,0.00021232,3]
[350147679,1737652252159,-523.12,0.00021232,3]
[350147680,1737652252168,-500.0,0.00021232,3]
[350147681,1737652252178,-538.38,0.00021232,3]
[350147682,1737652252194,-4349.76,0.00021232,3]
[350147683,1737652252207,-629.49,0.00021232,3]
[350147684,1737652252216,-521.66613896,0.00021279,2]
[350147685,1737652252226,-500.0,0.00021289,2]
[350147686,1737652252235,-500.0,0.00021289,3]
[350147687,1737652252245,-500.0,0.00021289,3]
[350147688,1737652252255,-500.0,0.00021289,3]
[350147689,1737652252265,-1771.12,0.00021289,3]
[350147690,1737652252275,-500.0,0.00021364,2]
[350147691,1737652252285,-500.0,0.00021364,2]
[350147692,1737652252295,-500.0,0.00021364,2]
[350147693,1737652252304,-500.0,0.00021369,2]
[350147694,1737652252313,-609.37,0.00021369,3]
[350147695,1737652252323,-1052.94,0.00021369,3]
[350147696,1737652252333,-653.13,0.00021369,3]
[350147697,1737652252342,-1663.58,0.00021369,3]
[350147699,1737652252351,-1277.83,0.00021369,3]
[350147700,1737652252360,-500.0,0.00021369,3]
[350147701,1737652252370,-523.12,0.00021369,3]
[350147702,1737652252379,-500.0,0.00021369,3]
[350147703,1737652252389,-538.38,0.00021369,3]
[350147704,1737652252398,-4349.76,0.00021369,3]
[350147705,1737652252408,-629.49,0.00021369,3]
[350147706,1737652252417,-521.66613896,0.00021417,2]
[350147707,1737652252426,-150.0,0.00021425,2]
[350147708,1737652252440,-500.0,0.00021426,3]
[350147709,1737652252450,-500.0,0.00021426,3]
[350147710,1737652252459,-500.0,0.00021426,3]
[350147711,1737652252469,-1771.12,0.00021426,3]
[350147712,1737652252478,-1500.0,0.00021433,2]
[350147713,1737652252487,-500.0,0.00021506,2]
[350147714,1737652252496,-609.37,0.00021506,3]
[350147715,1737652252506,-1052.94,0.00021506,3]
[350147716,1737652252516,-653.13,0.00021506,3]
[350147717,1737652252525,-1663.58,0.00021506,3]
[350147718,1737652252534,-1277.83,0.00021506,3]
[350147719,1737652252544,-500.0,0.00021506,3]
[350147720,1737652252553,-523.12,0.00021506,3]
[350147721,1737652252563,-177.8,0.00021506,3]
[350147722,1737652252574,-538.38,0.00021506,3]
[350147724,1737652252583,-4349.76,0.00021506,3]
[350147725,1737652252592,-629.49,0.00021506,3]
[350147726,1737652252606,-521.66613896,0.00021555,2]
[350147727,1737652252621,-500.0,0.00021563,3]
[350147728,1737652252635,-500.0,0.00021563,3]
[350147729,1737652252647,-500.0,0.00021563,3]
[350147730,1737652252661,-1771.12,0.00021563,3]
[350147731,1737652252675,-2000.0,0.000216,2]
[350147732,1737652252691,-7072.0,0.000216,4]
[350147733,1737652252705,-500.0,0.00021643,2]
[350147734,1737652252719,-609.37,0.00021643,3]
[350147735,1737652252735,-1052.94,0.00021643,3]
[350147736,1737652252748,-653.13,0.00021643,3]
[350147737,1737652252761,-1663.58,0.00021643,3]
[350147738,1737652252774,-1277.83,0.00021643,3]
[350147739,1737652252787,-500.0,0.00021643,3]
[350147740,1737652252801,-523.12,0.00021643,3]
[350147741,1737652252814,-538.38,0.00021643,3]
[350147742,1737652252824,-4349.76,0.00021643,3]
[350147743,1737652252836,-629.49,0.00021643,3]
[350147744,1737652252848,-521.66613896,0.00021693,3]
[350147745,1737652252860,-500.0,0.000217,3]
[350147746,1737652252873,-500.0,0.000217,3]
[350147747,1737652252887,-500.0,0.000217,3]
[350147748,1737652252901,-1771.12,0.000217,3]
[350147749,1737652252915,-500.0,0.0002178,2]
[350147750,1737652252929,-609.37,0.0002178,3]
[350147751,1737652252941,-1052.94,0.0002178,3]
[350147752,1737652252953,-653.13,0.0002178,3]
[350147753,1737652252965,-1663.58,0.0002178,3]
[350147754,1737652252979,-1277.83,0.0002178,3]
[350147755,1737652252994,-500.0,0.0002178,3]
[350147756,1737652253004,-523.12,0.0002178,3]
[350147757,1737652253017,-538.38,0.0002178,3]
[350147758,1737652253030,-4349.76,0.0002178,3]
[350147759,1737652253044,-629.49,0.0002178,3]
[350147760,1737652253055,-10678.94,0.000218,2]
[350147761,1737652253066,-5860.09,0.000218,2]
[350147762,1737652253079,-521.66613896,0.00021831,3]
[350147763,1737652253090,-862.91623972,0.00021831,2]
[350147764,1737652253102,-500.0,0.00021837,3]
[350147765,1737652253115,-469.36,0.00021837,3]
[350147766,1737652253127,-483.93,0.00021837,3]
[350147767,1737652253139,-1771.12,0.00021837,3]
[350147768,1737652253151,-363.8620275,0.000219,2]
[350147769,1737652253162,-1000.0,0.00021912,2]
[350147770,1737652253173,-1000.0,0.00021912,2]
[350147771,1737652253187,-573.52700362,0.00021912,2]
[350147772,1737652253200,-500.0,0.00021917,3]
[350147773,1737652253214,-500.0,0.00021917,3]
[350147774,1737652253226,-500.0,0.00021917,3]
[350147775,1737652253240,-500.0,0.00021917,2]
[350147776,1737652253251,-609.37,0.00021917,3]
[350147777,1737652253263,-1052.94,0.00021917,3]
[350147778,1737652253275,-653.13,0.00021917,3]
[350147779,1737652253288,-1663.58,0.00021917,3]
[350147780,1737652253300,-1277.83,0.00021917,3]
[350147781,1737652253312,-172.96,0.00021917,3]
[350147782,1737652253323,-523.12,0.00021917,3]
[350147783,1737652253335,-538.38,0.00021917,3]
[350147784,1737652253349,-4349.76,0.00021917,3]
[350147785,1737652253361,-629.49,0.00021917,3]
[350147786,1737652253373,-521.66613896,0.00021969,3]
[350147787,1737652253384,-500.0,0.00021974,3]
[350147788,1737652253396,-1771.12,0.00021974,3]
[350147789,1737652253408,-150.0,0.00022,2]
[350147790,1737652253420,-224.0,0.00022,2]
[350147791,1737652253432,-500.0,0.00022054,2]
[350147792,1737652253445,-609.37,0.00022054,3]
[350147793,1737652253457,-1052.94,0.00022054,3]
[350147794,1737652253470,-653.13,0.00022054,3]
[350147795,1737652253482,-1663.58,0.00022054,3]
[350147796,1737652253493,-1277.83,0.00022054,3]
[350147797,1737652253506,-523.12,0.00022054,3]
[350147798,1737652253518,-538.38,0.00022054,3]
[350147799,1737652253530,-4349.76,0.00022054,3]
[350147800,1737652253543,-629.49,0.00022054,3]
[350147801,1737652253555,-521.66613896,0.00022107,3]
[350147802,1737652253566,-412.91,0.00022111,3]
[350147803,1737652253578,-1771.12,0.00022111,3]
[350147804,1737652253590,-198.89,0.00022191,2]
[350147805,1737652253601,-609.37,0.00022191,3]
[350147806,1737652253611,-1052.94,0.00022191,3]
[350147807,1737652253739,-653.13,0.00022191,3]
[350147808,1737652253755,-1663.58,0.00022191,3]
[350147809,1737652253766,-1277.83,0.00022191,3]
[350147810,1737652253777,-523.12,0.00022191,3]
[350147811,1737652253788,-538.38,0.00022191,3]
[350147812,1737652253799,-4349.76,0.00022191,3]
[350147813,1737652253809,-629.49,0.00022191,3]
[350147814,1737652253819,-224.0,0.00022192,2]
[350147815,1737652253828,-521.66613896,0.00022245,3]
[350147816,1737652253838,-1771.12,0.00022248,3]
[350147817,1737652253848,-609.57136772,0.00022328,3]
[350147818,1737652253859,-1052.9425552,0.00022328,3]
[350147819,1737652253869,-653.13,0.00022328,3]
[350147820,1737652253879,-1663.67,0.00022328,3]
[350147821,1737652253889,-1277.93,0.00022328,3]
[350147822,1737652253898,-523.12,0.00022328,3]
[350147823,1737652253909,-538.61,0.00022328,3]
[350147824,1737652253920,-4349.99689203,0.00022328,3]
[350147825,1737652253930,-629.68,0.00022328,3]
[350147826,1737652253942,-500.0,0.00022356,2]
[350147827,1737652253951,-521.66613896,0.00022383,3]
[350147828,1737652253961,-1771.12,0.00022385,3]
[350147829,1737652253971,-153.2,0.000225,31]
[350147830,1737652253980,-153.2,0.000225,31]
[350147831,1737652253989,-153.2,0.000225,31]
[350147832,1737652253999,-153.2,0.000225,31]
[350147833,1737652254009,-153.2,0.000225,31]
[350147834,1737652254018,-153.2,0.000225,31]
[350147835,1737652254027,-862.91623972,0.00022519,2]
[350147836,1737652254037,-521.66613896,0.00022521,3]
[350147837,1737652254046,-1771.12,0.00022522,3]
[350147838,1737652254057,-521.66613896,0.00022659,3]
[350147839,1737652254067,-1771.12,0.00022659,3]
[350147840,1737652254076,-300.0,0.000227,10]
[350147841,1737652254087,-2000.0,0.0002273,2]
[350147842,1737652254096,-331.781,0.0002277,2]
[350147843,1737652254106,-1771.12,0.00022796,3]
[350147844,1737652254116,-521.66613896,0.00022797,3]
[350147845,1737652254125,-1500.0,0.00022913,2]
[350147846,1737652254135,-283.52102357,0.00022913,2]
[350147847,1737652254145,-1771.12,0.00022933,3]
[350147848,1737652254154,-521.66613896,0.00022934,3]
[350147849,1737652254164,-1000.0,0.00022976,2]
[350147850,1737652254173,-1000.0,0.00023,23]
[350147851,1737652254183,-150.0,0.00023014,2]
[350147852,1737652254196,-224.0,0.00023014,2]
[350147853,1737652254207,-1771.19,0.0002307,3]
[350147854,1737652254217,-521.66613896,0.00023072,3]
[350147855,1737652254226,-263.42,0.000232,2]
[350147856,1737652254236,-153.66421488,0.000232,2]
[350147857,1737652254247,-153.66421488,0.000232,2]
[350147858,1737652254256,-862.91623972,0.00023208,2]
[350147859,1737652254265,-521.66613896,0.0002321,3]
[350147860,1737652254276,-500.0,0.00023273,2]
[350147861,1737652254286,-500.0,0.00023273,2]
[350147862,1737652254296,-500.0,0.00023273,2]
[350147863,1737652254306,-177538.69476775,0.000233,2]
[350147864,1737652254315,-153.66421488,0.00023303,2]
[350147865,1737652254325,-7072.0,0.00023328,7]
[350147866,1737652254334,-521.66613896,0.00023348,3]
[350147867,1737652254344,-10678.94,0.000234,2]
[350147868,1737652254353,-5860.09,0.000234,14]
[350147869,1737652254362,-9848.98572628,0.00023456,2]
[350147870,1737652254371,-521.66613896,0.00023486,3]
[350147871,1737652254382,-153.2,0.000235,31]
[350147872,1737652254392,-153.2,0.000235,31]
[350147873,1737652254401,-153.2,0.000235,31]
[350147874,1737652254411,-153.2,0.000235,31]
[350147875,1737652254421,-9849.46683803,0.00023561,14]
[350147876,1737652254540,-1623.7703165,0.00023561,14]
[350147877,1737652254552,-5703.55700372,0.00023561,14]
[350147878,1737652254561,-521.66613896,0.00023624,3]
[350147879,1737652254571,-151.0,0.00023688,7]
[350147880,1737652254581,-1207.206654,0.000237,5]
[350147881,1737652254590,-237.34438367,0.00023715,2]
[350147882,1737652254770,-500.0,0.00019178,2]
[350147883,1737652254780,-500.0,0.00019315,3]
[350147884,1737652254790,-592.04,0.00020136,3]
[350147885,1737652254799,-592.04,0.00020273,3]
[350147886,1737652254809,-592.04,0.0002041,3]
[350147887,1737652254818,-592.04,0.00020547,3]
[350147888,1737652254827,-592.04,0.00020684,3]
[350147889,1737652254837,-592.04,0.00020821,3]
[350147890,1737652254846,-592.04,0.00020958,3]
[350147891,1737652254855,-592.04,0.00021095,3]
[350147892,1737652254864,-592.04,0.00021232,3]
[350147893,1737652254873,-592.04,0.00021369,3]
[350147894,1737652254882,-14111.6,0.00023715,2]
[350147895,1737652254894,-723.34272472,0.00023715,2]
[350147896,1737652254911,-527.1500001,0.00021506,3]
[350147897,1737652254924,-64.8899999,0.00021506,3]
[350147898,1737652254936,-2370.41251319,0.00023715,2]
[350147899,1737652254945,-1000.0,0.0002372,5]
[350147900,1737652254955,-505.8447325,0.00023726,2]
[350147901,1737652254964,-1000.0,0.0002374,5]
[350147902,1737652254973,-1000.0,0.0002376,5]
[350147903,1737652254983,-1000.0,0.0002378,5]
[350147904,1737652254992,-1000.0,0.000238,5]
[350147905,1737652255001,-1000.0,0.0002382,5]
[350147906,1737652255010,-978.44038092,0.00023821,2]
[350147907,1737652255020,-1000.0,0.00023821,2]
[350147908,1737652255030,-1059.76097133,0.00023821,2]
[350147909,1737652255040,-9848.98572629,0.00023828,2]
[350147910,1737652255049,-1000.0,0.0002384,5]
[350147911,1737652255058,-1000.0,0.0002386,5]
[350147912,1737652255068,-1000.0,0.0002388,5]
[350147913,1737652255078,-862.91623972,0.00023896,2]
[350147914,1737652255087,-188.0,0.000239,2]
[350147915,1737652255096,-1000.0,0.000239,5]
[350147916,1737652255106,-153.66,0.00023901,2]
[350147917,1737652255117,-7474.7946411,0.00023901,2]
[350147918,1737652255127,-299.86,0.00023958,2]
[350147919,1737652255140,-299.8,0.00023958,2]
[350147920,1737652255149,-150.02,0.00023958,14]
[350147921,1737652255159,-150.05,0.00023958,14]
[350147922,1737652255168,-500.0,0.00023958,3]
[350147923,1737652255178,-150.02,0.00023958,3]
[350147924,1737652255188,-166.17,0.00023963,2]
[350147925,1737652255200,-500.0,0.00023973,2]
[350147926,1737652255209,-165.76115463,0.00023973,2]
[350147927,1737652255221,-334.23884537,0.00023973,2]
[350147928,1737652255231,-272.7683698,0.00023973,2]
[350147929,1737652255241,-500.0,0.00023973,2]
[350147930,1737652255251,-500.0,0.00023973,2]
[350147931,1737652255260,-500.0,0.00023973,2]
[350147932,1737652255271,-500.0,0.00023973,2]
[350147933,1737652255281,-500.0,0.00023973,2]
[350147934,1737652255291,-153.0,0.00023988,2]
[350147935,1737652255301,-153.0,0.00023988,2]
[350147936,1737652255311,-153.0,0.00023988,2]
[350147937,1737652255320,-153.0,0.00023988,2]
[350147938,1737652255330,-153.0,0.00023988,2]
[350147939,1737652255339,-153.0,0.00023988,2]
[350147940,1737652255348,-153.0,0.00023988,2]
[350147941,1737652255358,-153.0,0.00023988,2]
[350147942,1737652255368,-153.0,0.00023988,2]
[350147943,1737652255377,-153.0,0.00023988,2]
[350147944,1737652255387,-153.0,0.00023988,2]
[350147945,1737652255396,-153.0,0.00023988,2]
[350147946,1737652255405,-153.0,0.00023988,2]
[350147947,1737652255415,-153.0,0.00023988,2]
[350147948,1737652255424,-153.0,0.00023989,2]
[350147949,1737652255434,-153.0,0.00023989,2]
[350147950,1737652255447,-153.0,0.00023989,2]
[350147951,1737652255456,-153.0,0.00023989,2]
[350147952,1737652255465,-153.0,0.00023989,2]
[350147953,1737652255475,-153.0,0.00023989,2]
[350147954,1737652255484,-153.0,0.00023989,2]
[350147955,1737652255494,-153.0,0.00023989,2]
[350147956,1737652255503,-153.0,0.00023989,2]
[350147957,1737652255513,-153.0,0.00023989,2]
[350147958,1737652255522,-153.0,0.00023989,2]
[350147959,1737652255531,-153.0,0.00023989,2]
[350147960,1737652255540,-97.43864433,0.00023989,2]
[350147961,1737652255553,-55.56135567,0.00023989,2]
[350147962,1737652255563,-153.0,0.00023989,2]
[350147963,1737652255572,-153.0,0.00023989,2]
[350147964,1737652255581,-153.0,0.00023989,2]
[350147965,1737652255591,-153.0,0.00023989,2]
[350147966,1737652255600,-153.0,0.0002399,2]
[350147967,1737652255609,-153.0,0.0002399,2]
[350147968,1737652255619,-153.0,0.0002399,2]
[350147969,1737652255628,-153.0,0.0002399,2]
[350147970,1737652255637,-153.0,0.0002399,2]
[350147971,1737652255646,-153.0,0.0002399,2]
[350147972,1737652255655,-153.0,0.0002399,2]
[350147973,1737652255665,-153.0,0.0002399,2]
[350147974,1737652255673,-153.0,0.0002399,2]
[350147975,1737652255683,-153.0,0.0002399,2]
[350147976,1737652255692,-153.0,0.0002399,2]
[350147977,1737652255701,-153.0,0.0002399,2]
[350147978,1737652255710,-153.0,0.0002399,2]
[350147979,1737652255719,-153.0,0.0002399,2]
[350147980,1737652255728,-153.0,0.0002399,2]
[350147981,1737652255737,-153.0,0.0002399,2]
[350147982,1737652255746,-153.0,0.0002399,2]
[350147983,1737652255755,-153.0,0.0002399,2]
[350147984,1737652255764,-153.0,0.0002399,2]
[350147985,1737652255772,-153.0,0.0002399,2]
[350147986,1737652255781,-153.0,0.0002399,2]
[350147987,1737652255790,-153.0,0.0002399,2]
[350147988,1737652255799,-153.0,0.0002399,2]
[350147989,1737652255893,-153.0,0.0002399,2]
[350147990,1737652255902,-153.0,0.0002399,2]
[350147991,1737652255911,-153.0,0.0002399,2]
[350147992,1737652255922,-153.0,0.0002399,2]
[350147993,1737652255931,-153.0,0.00023991,2]
[350147994,1737652255942,-153.0,0.00023991,2]
[350147995,1737652255951,-153.0,0.00023991,2]
[350147996,1737652255960,-153.0,0.00023991,2]
[350147997,1737652255969,-153.0,0.00023991,2]
[350147998,1737652255979,-153.0,0.00023991,2]
[350147999,1737652255988,-153.0,0.00023991,2]
[350148000,1737652255997,-153.0,0.00023991,2]
[350148001,1737652256007,-153.0,0.00023991,2]
[350148002,1737652256016,-153.0,0.00023991,2]
[350148003,1737652256025,-153.0,0.00023991,2]
[350148004,1737652256035,-153.0,0.00023991,2]
[350148005,1737652256044,-153.0,0.00023991,2]
[350148006,1737652256054,-153.0,0.00023991,2]
[350148007,1737652256064,-153.0,0.00023991,2]
[350148008,1737652256073,-153.0,0.00023991,2]
[350148009,1737652256083,-153.0,0.00023991,2]
[350148010,1737652256092,-153.0,0.00023991,2]
[350148011,1737652256101,-153.0,0.00023992,2]
[350148012,1737652256110,-153.0,0.00023992,2]
[350148013,1737652256119,-153.0,0.00023992,2]
[350148014,1737652256128,-153.0,0.00023992,2]
[350148015,1737652256139,-791.31355101,0.00023993,2]
[350148016,1737652256150,-151.0,0.00023996,7]
[350148017,1737652256159,-81.59045653,0.00023996,7]
[350148079,1737652865463,400.0,0.00013973,2]
[350148121,1737653325205,1962.9999994,0.0002,120]
[350148125,1737653370133,-194.433565,0.00016598,2]
[350148126,1737653370155,-194.433565,0.00016766,2]
[350148127,1737653370176,-226.778783,0.00017369,2]
[350148128,1737653370196,-300.0,0.0001747,2]
[350148129,1737653370216,-14033.1942268,0.00017471,2]
[350148130,1737653373127,-7898.8673794,0.00017471,2]
[350148131,1737653373153,-1120.92954311,0.000176,2]
[350148132,1737653378099,194.433565,0.0001763,2]
[350148133,1737653386180,194.433565,0.0001763,2]
[350148136,1737653401401,194.433565,0.0001763,2]
[350148137,1737653417076,194.433565,0.0001763,2]
[350148145,1737653433398,194.433565,0.0001763,2]
[350148147,1737653434299,-194.433565,0.00017808,2]
[350148148,1737653434309,-250.0,0.0001782,2]
[350148149,1737653434319,-2862.0,0.00018245,5]
[350148150,1737653434329,-1105.79626113,0.00018484,2]
[350148152,1737653434341,-466.90318042,0.000189,2]
[350148153,1737653434350,-300.0,0.00018999,2]
[350148155,1737653434360,-9566.70447546,0.00019,2]
[350148156,1737653434373,-534.09103107,0.00019,2]
[350148157,1737653434384,-35.98770165,0.00019078,2]
[350148158,1737653434395,-602.54912667,0.00019078,2]
[350148159,1737653434405,-461.65087333,0.00019177,2]
[350148160,1737653434435,-38.34912667,0.00019177,2]
[350148161,1737653434445,-500.0,0.00019177,2]
[350148162,1737653434454,-500.0,0.00019177,2]
[350148163,1737653434464,-500.0,0.00019177,2]
[350148164,1737653434474,-500.0,0.00019177,2]
[350148165,1737653434483,-500.0,0.00019177,2]
[350148166,1737653434493,-449.63164656,0.00019177,2]
[350148167,1737653434503,-500.0,0.00019177,2]
[350148168,1737653434513,-500.0,0.00019177,2]
[350148169,1737653434523,-500.0,0.00019177,2]
[350148170,1737653434533,-501.26685058,0.00019177,2]
[350148171,1737653434545,-500.0,0.00019177,2]
[350148172,1737653434555,-500.0,0.00019177,2]
[350148173,1737653434565,-500.0,0.00019177,2]
[350148174,1737653434575,-500.0,0.00019177,2]
[350148175,1737653434584,-305.30292733,0.00019177,2]
[350148176,1737653434594,-500.0,0.00019177,2]
[350148177,1737653434604,-500.0,0.00019177,2]
[350148178,1737653434614,-500.0,0.00019177,2]
[350148179,1737653434625,-500.0,0.00019177,2]
[350148180,1737653434635,-500.0,0.00019177,2]
[350148181,1737653434644,-500.0,0.00019177,2]
[350148182,1737653434653,-500.0,0.00019178,2]
[350148183,1737653434662,-500.0,0.00019178,2]
[350148184,1737653434672,-168.96607343,0.00019178,2]
[350148185,1737653434684,-331.03392657,0.00019178,2]
[350148186,1737653434693,-5.96733749,0.00019178,2]
[350148214,1737653438064,-497.22111274,0.00019178,2]
[350148215,1737653438074,-500.0,0.00019178,2]
[350148216,1737653438084,-501.86160833,0.00019178,2]
[350148217,1737653438094,-500.0,0.00019178,2]
[350148218,1737653438104,-500.0,0.00019178,2]
[350148219,1737653438113,-500.0,0.00019178,2]
[350148220,1737653438123,-500.0,0.00019178,2]
[350148221,1737653438135,-500.0,0.00019178,2]
[350148222,1737653438145,-500.0,0.00019178,2]
[350148223,1737653438155,-500.0,0.00019178,2]
[350148224,1737653438164,-500.0,0.00019178,2]
[350148225,1737653438173,-500.0,0.00019178,2]
[350148226,1737653438182,-74.61819284,0.00019178,2]
[350148227,1737653438200,-425.38180716,0.00019178,2]
[350148228,1737653438210,-500.0,0.00019178,2]
[350148229,1737653438219,-500.0,0.00019178,2]
[350148230,1737653438228,-500.0,0.00019178,2]
[350148231,1737653438238,-257.33635515,0.00019178,2]